[Event "Titled Tuesday Blitz June 6 Late 2023"]
[White "campochess"]
[Black "Barria Santos, Jose Guilherme"]
[BlackFideId "1939300"]
[WhiteElo "2155"]
[BlackElo "2266"]
[Result "1/2-1/2"]
[Round "2"]
[TimeControl "180+2"]
[Date "2023.06.07"]
[WhiteClock "0:00:28"]
[BlackClock "0:00:09"]
[Board "168"]

1. d4 {[%clk 0:02:49]}  Nf6 {[%clk 0:02:59]} 2. Bg5 {[%clk 0:02:48]}  d5 {[%clk 0:02:58]} 3. Nd2 {[%clk 0:02:47]}  c5 {[%clk 0:02:55]} 4. e3 {[%clk 0:02:44]}  Nc6 {[%clk 0:02:49]} 5. c3 {[%clk 0:02:43]}  e6 {[%clk 0:02:43]} 6. Bd3 {[%clk 0:02:42]}  Be7 {[%clk 0:02:38]} 7. Ngf3 {[%clk 0:02:41]}  O-O {[%clk 0:02:34]} 8. O-O {[%clk 0:02:40]}  b6 {[%clk 0:02:31]} 9. Bh4 {[%clk 0:02:38]}  Bb7 {[%clk 0:02:31]} 10. Bg3 {[%clk 0:02:37]}  Bd6 {[%clk 0:02:28]} 11. Ne5 {[%clk 0:02:36]}  Qc7 {[%clk 0:02:27]} 12. f4 {[%clk 0:02:35]}  Ne7 {[%clk 0:02:28]} 13. Bh4 {[%clk 0:02:31]}  Ne4 {[%clk 0:02:25]} 14. Bxe7 {[%clk 0:02:26]}  Qxe7 {[%clk 0:02:22]} 15. Nxe4 {[%clk 0:02:26]}  dxe4 {[%clk 0:02:23]} 16. Bc2 {[%clk 0:02:18]}  Rad8 {[%clk 0:02:18]} 17. Qh5 {[%clk 0:02:17]}  f6 {[%clk 0:02:06]} 18. Nc4 {[%clk 0:02:13]}  Bc7 {[%clk 0:02:03]} 19. a4 {[%clk 0:02:07]}  g6 {[%clk 0:02:00]} 20. Qh4 {[%clk 0:02:04]}  Ba6 {[%clk 0:01:58]} 21. b3 {[%clk 0:02:02]}  Bb7 {[%clk 0:01:51]} 22. Rf2 {[%clk 0:02:00]}  Qf7 {[%clk 0:01:25]} 23. Nd2 {[%clk 0:01:58]}  f5 {[%clk 0:01:15]} 24. g4 {[%clk 0:01:54]}  cxd4 {[%clk 0:01:07]} 25. cxd4 {[%clk 0:01:52]}  Bd5 {[%clk 0:01:06]} 26. gxf5 {[%clk 0:01:46]}  exf5 {[%clk 0:01:07]} 27. Rb1 {[%clk 0:01:38]}  a6 {[%clk 0:01:06]} 28. Nc4 {[%clk 0:01:37]}  b5 {[%clk 0:00:58]} 29. axb5 {[%clk 0:01:36]}  axb5 {[%clk 0:00:59]} 30. Ne5 {[%clk 0:01:36]}  Qe6 {[%clk 0:00:58]} 31. Bd1 {[%clk 0:01:25]}  Ra8 {[%clk 0:00:55]} 32. Rc2 {[%clk 0:01:24]}  Bd6 {[%clk 0:00:52]} 33. Rg2 {[%clk 0:01:15]}  Ra7 {[%clk 0:00:48]} 34. Qg5 {[%clk 0:01:05]}  Rc8 {[%clk 0:00:41]} 35. Bh5 {[%clk 0:00:59]}  Rg7 {[%clk 0:00:41]} 36. Be2 {[%clk 0:00:57]}  b4 {[%clk 0:00:34]} 37. Bc4 {[%clk 0:00:55]}  Bxe5 {[%clk 0:00:34]} 38. fxe5 {[%clk 0:00:54]}  Bxc4 {[%clk 0:00:33]} 39. bxc4 {[%clk 0:00:54]}  Qxc4 {[%clk 0:00:31]} 40. Rgb2 {[%clk 0:00:51]}  Rb8 {[%clk 0:00:28]} 41. Qf6 {[%clk 0:00:49]}  Qc3 {[%clk 0:00:21]} 42. Rb3 {[%clk 0:00:48]}  Qc4 {[%clk 0:00:18]} 43. Qd6 {[%clk 0:00:45]}  Rgb7 {[%clk 0:00:16]} 44. d5 {[%clk 0:00:42]}  Rb5 {[%clk 0:00:11]} 45. Qe6+ {[%clk 0:00:35]}  Kg7 {[%clk 0:00:11]} 46. Qf6+ {[%clk 0:00:35]}  Kh6 {[%clk 0:00:12]} 47. Qh4+ {[%clk 0:00:31]}  Kg7 {[%clk 0:00:13]} 48. Qf6+ {[%clk 0:00:30]}  Kg8 {[%clk 0:00:12]} 49. e6 {[%clk 0:00:29]}  Qxd5 {[%clk 0:00:07]} 50. Qf7+ {[%clk 0:00:28]}  Kh8 {[%clk 0:00:07]} 51. Qf6+ {[%clk 0:00:28]}  Kg8 {[%clk 0:00:08]} 52. Qf7+ {[%clk 0:00:28]}  Kh8 {[%clk 0:00:08]} 53. Qf6+ {[%clk 0:00:28]}  Kg8 {[%clk 0:00:09]} 1/2-1/2


[Site "https://www.chess.com"]

[Event "Titled Tuesday Blitz June 6 Late 2023"]
[White "Seletsky, Grigory"]
[Black "Tarnowska, Aleksandra"]
[WhiteFideId "14112191"]
[BlackFideId "1180967"]
[WhiteElo "2491"]
[BlackElo "1776"]
[Result "1-0"]
[Round "2"]
[TimeControl "180+2"]
[Date "2023.06.07"]
[WhiteClock "0:00:53"]
[BlackClock "0:00:02"]
[Board "170"]

1. e4 {[%clk 0:02:58]}  c5 {[%clk 0:03:00]} 2. Nc3 {[%clk 0:02:57]}  g6 {[%clk 0:02:54]} 3. d3 {[%clk 0:02:56]}  Bg7 {[%clk 0:02:55]} 4. Be3 {[%clk 0:02:56]}  d6 {[%clk 0:02:53]} 5. Qd2 {[%clk 0:02:56]}  Nc6 {[%clk 0:02:53]} 6. h4 {[%clk 0:02:52]}  h5 {[%clk 0:02:53]} 7. Nh3 {[%clk 0:02:52]}  Nf6 {[%clk 0:02:52]} 8. Be2 {[%clk 0:02:50]}  Ng4 {[%clk 0:02:46]} 9. Bg5 {[%clk 0:02:47]}  Nd4 {[%clk 0:02:40]} 10. Bd1 {[%clk 0:02:46]}  Bd7 {[%clk 0:02:05]} 11. f3 {[%clk 0:02:43]}  Ne5 {[%clk 0:01:57]} 12. Nf2 {[%clk 0:02:43]}  c4 {[%clk 0:01:55]} 13. Nd5 {[%clk 0:02:30]}  cxd3 {[%clk 0:01:20]} 14. Bxe7 {[%clk 0:02:24]}  Qc8 {[%clk 0:01:08]} 15. cxd3 {[%clk 0:02:13]}  Bc6 {[%clk 0:00:59]} 16. Bxd6 {[%clk 0:01:52]}  Bxd5 {[%clk 0:00:47]} 17. exd5 {[%clk 0:01:51]}  Qf5 {[%clk 0:00:25]} 18. O-O {[%clk 0:01:24]}  Kd7 {[%clk 0:00:20]} 19. Ba3 {[%clk 0:01:01]}  Rhd8 {[%clk 0:00:03]} 20. Qb4 {[%clk 0:00:56]}  Ke8 {[%clk 0:00:02]} 21. Qe7# {[%clk 0:00:53]} 1-0


[Site "https://www.chess.com"]

[Event "Titled Tuesday Blitz June 6 Late 2023"]
[White "Luong Phuong Hanh"]
[Black "Kornyukov, Alexey"]
[WhiteFideId "12401013"]
[BlackFideId "4150457"]
[WhiteElo "2081"]
[BlackElo "2352"]
[Result "0-1"]
[Round "2"]
[TimeControl "180+2"]
[Date "2023.06.07"]
[WhiteClock "0:01:27"]
[BlackClock "0:00:25"]
[Board "174"]

1. d4 {[%clk 0:02:58]}  d5 {[%clk 0:02:58]} 2. c4 {[%clk 0:02:58]}  e6 {[%clk 0:02:57]} 3. Nf3 {[%clk 0:02:58]}  c6 {[%clk 0:02:57]} 4. Qc2 {[%clk 0:02:58]}  dxc4 {[%clk 0:02:56]} 5. Qxc4 {[%clk 0:02:58]}  b5 {[%clk 0:02:57]} 6. Qd3 {[%clk 0:02:58]}  Bb7 {[%clk 0:02:58]} 7. g3 {[%clk 0:02:58]}  a6 {[%clk 0:02:57]} 8. Bg2 {[%clk 0:02:58]}  c5 {[%clk 0:02:58]} 9. dxc5 {[%clk 0:02:56]}  Qxd3 {[%clk 0:02:58]} 10. exd3 {[%clk 0:02:57]}  Bxc5 {[%clk 0:02:58]} 11. O-O {[%clk 0:02:58]}  Nf6 {[%clk 0:02:58]} 12. d4 {[%clk 0:02:58]}  Bb6 {[%clk 0:02:56]} 13. Nc3 {[%clk 0:02:59]}  O-O {[%clk 0:02:54]} 14. Bg5 {[%clk 0:02:58]}  Nbd7 {[%clk 0:02:53]} 15. Rad1 {[%clk 0:02:56]}  h6 {[%clk 0:02:53]} 16. Bf4 {[%clk 0:02:56]}  Rfd8 {[%clk 0:02:51]} 17. Bd6 {[%clk 0:02:53]}  Rac8 {[%clk 0:02:43]} 18. Ne5 {[%clk 0:02:52]}  Bxg2 {[%clk 0:02:41]} 19. Kxg2 {[%clk 0:02:53]}  Nb8 {[%clk 0:02:32]} 20. Be7 {[%clk 0:02:53]}  Rxd4 {[%clk 0:02:31]} 21. Bxf6 {[%clk 0:02:47]}  gxf6 {[%clk 0:02:27]} 22. Nf3 {[%clk 0:02:46]}  Rxd1 {[%clk 0:02:25]} 23. Rxd1 {[%clk 0:02:46]}  Rd8 {[%clk 0:02:20]} 24. Re1 {[%clk 0:02:46]}  Nc6 {[%clk 0:02:15]} 25. Ne4 {[%clk 0:02:46]}  Kg7 {[%clk 0:02:13]} 26. Rc1 {[%clk 0:02:45]}  Ne7 {[%clk 0:02:02]} 27. Rc2 {[%clk 0:02:35]}  f5 {[%clk 0:01:56]} 28. Ned2 {[%clk 0:02:35]}  Kf6 {[%clk 0:01:52]} 29. Nf1 {[%clk 0:02:31]}  Rc8 {[%clk 0:01:48]} 30. Re2 {[%clk 0:02:30]}  Nd5 {[%clk 0:01:47]} 31. Ne5 {[%clk 0:02:28]}  Bd4 {[%clk 0:01:33]} 32. Nd3 {[%clk 0:02:24]}  e5 {[%clk 0:01:24]} 33. Ne1 {[%clk 0:02:17]}  e4 {[%clk 0:01:16]} 34. Nd2 {[%clk 0:02:16]}  Rc1 {[%clk 0:01:10]} 35. Nb3 {[%clk 0:02:15]}  Rd1 {[%clk 0:01:10]} 36. Nc2 {[%clk 0:02:05]}  Bxb2 {[%clk 0:01:09]} 37. Nc5 {[%clk 0:02:02]}  Nc3 {[%clk 0:00:57]} 38. Re3 {[%clk 0:01:55]}  Rd2 {[%clk 0:00:54]} 39. Nb4 {[%clk 0:01:46]}  Nd1 {[%clk 0:00:52]} 40. Rxe4 {[%clk 0:01:20]}  Rxf2+ {[%clk 0:00:47]} 41. Kg1 {[%clk 0:01:19]}  fxe4 {[%clk 0:00:45]} 42. Nxe4+ {[%clk 0:01:19]}  Ke6 {[%clk 0:00:36]} 43. Nxf2 {[%clk 0:01:20]}  Bd4 {[%clk 0:00:34]} 44. Nd3 {[%clk 0:01:20]}  Nxf2 {[%clk 0:00:34]} 45. Nxf2 {[%clk 0:01:21]}  Kd5 {[%clk 0:00:29]} 46. Kg2 {[%clk 0:01:21]}  Bxf2 {[%clk 0:00:30]} 47. Kxf2 {[%clk 0:01:22]}  Kc4 {[%clk 0:00:29]} 48. Ke3 {[%clk 0:01:23]}  Kc3 {[%clk 0:00:29]} 49. Kf4 {[%clk 0:01:24]}  b4 {[%clk 0:00:29]} 50. g4 {[%clk 0:01:24]}  a5 {[%clk 0:00:29]} 51. h4 {[%clk 0:01:25]}  a4 {[%clk 0:00:30]} 52. h5 {[%clk 0:01:26]}  b3 {[%clk 0:00:25]} 53. g5 {[%clk 0:01:27]}  hxg5+ {[%clk 0:00:25]} 54. Kxg5 {[%clk 0:01:26]}  b2 {[%clk 0:00:24]} 55. h6 {[%clk 0:01:27]}  b1=Q {[%clk 0:00:25]} 0-1


[Site "https://www.chess.com"]

[Event "Titled Tuesday Blitz June 6 Late 2023"]
[White "Levine, David"]
[Black "Eidelman, Gabriel"]
[WhiteFideId "2011611"]
[BlackFideId "30910544"]
[WhiteElo "2101"]
[BlackElo "2451"]
[Result "0-1"]
[Round "2"]
[TimeControl "180+2"]
[Date "2023.06.07"]
[WhiteClock "0:00:07"]
[BlackClock "0:00:33"]
[Board "175"]

1. d4 {[%clk 0:03:00]}  Nf6 {[%clk 0:02:54]} 2. c4 {[%clk 0:02:59]}  d6 {[%clk 0:02:54]} 3. Nf3 {[%clk 0:02:56]}  Nbd7 {[%clk 0:02:53]} 4. g3 {[%clk 0:02:55]}  e5 {[%clk 0:02:52]} 5. Nc3 {[%clk 0:02:53]}  Be7 {[%clk 0:02:52]} 6. Bg2 {[%clk 0:02:52]}  O-O {[%clk 0:02:51]} 7. O-O {[%clk 0:02:52]}  c6 {[%clk 0:02:51]} 8. Rb1 {[%clk 0:02:42]}  Re8 {[%clk 0:02:21]} 9. e4 {[%clk 0:02:37]}  Bf8 {[%clk 0:02:17]} 10. Re1 {[%clk 0:02:27]}  a6 {[%clk 0:02:14]} 11. b4 {[%clk 0:02:06]}  b5 {[%clk 0:02:13]} 12. c5 {[%clk 0:01:58]}  Qc7 {[%clk 0:01:53]} 13. dxe5 {[%clk 0:01:44]}  Nxe5 {[%clk 0:01:47]} 14. Nxe5 {[%clk 0:01:38]}  dxe5 {[%clk 0:01:48]} 15. Bg5 {[%clk 0:01:27]}  Be7 {[%clk 0:01:41]} 16. a4 {[%clk 0:01:11]}  Be6 {[%clk 0:01:40]} 17. Qc2 {[%clk 0:00:49]}  Red8 {[%clk 0:01:29]} 18. Red1 {[%clk 0:00:43]}  Rxd1+ {[%clk 0:01:18]} 19. Rxd1 {[%clk 0:00:43]}  Rd8 {[%clk 0:01:17]} 20. axb5 {[%clk 0:00:37]}  axb5 {[%clk 0:01:15]} 21. Bf1 {[%clk 0:00:29]}  Bg4 {[%clk 0:01:00]} 22. Ra1 {[%clk 0:00:27]}  Bf3 {[%clk 0:00:47]} 23. Bg2 {[%clk 0:00:27]}  Bxg2 {[%clk 0:00:45]} 24. Kxg2 {[%clk 0:00:27]}  h6 {[%clk 0:00:38]} 25. Bxf6 {[%clk 0:00:21]}  Bxf6 {[%clk 0:00:39]} 26. Ra6 {[%clk 0:00:18]}  Rd4 {[%clk 0:00:37]} 27. Qb3 {[%clk 0:00:07]}  Qd7 {[%clk 0:00:33]} 0-1


[Site "https://www.chess.com"]

[Event "Titled Tuesday Blitz June 6 Late 2023"]
[White "dorpato"]
[Black "Balla, Tamas-Kristof"]
[BlackFideId "1208497"]
[WhiteElo "2059"]
[BlackElo "2334"]
[Result "1-0"]
[Round "2"]
[TimeControl "180+2"]
[Date "2023.06.07"]
[WhiteClock "0:00:58"]
[BlackClock "0:00:35"]
[Board "178"]

1. e4 {[%clk 0:03:00]}  c5 {[%clk 0:02:57]} 2. Nc3 {[%clk 0:02:59]}  Nc6 {[%clk 0:02:41]} 3. g3 {[%clk 0:02:52]}  g6 {[%clk 0:02:40]} 4. Bg2 {[%clk 0:02:47]}  Bg7 {[%clk 0:02:40]} 5. d3 {[%clk 0:02:46]}  d6 {[%clk 0:02:37]} 6. Be3 {[%clk 0:02:44]}  e6 {[%clk 0:02:30]} 7. Qd2 {[%clk 0:02:35]}  Nf6 {[%clk 0:02:23]} 8. h3 {[%clk 0:02:27]}  O-O {[%clk 0:02:06]} 9. Bh6 {[%clk 0:02:24]}  Rb8 {[%clk 0:02:05]} 10. Bxg7 {[%clk 0:02:23]}  Kxg7 {[%clk 0:02:05]} 11. f4 {[%clk 0:02:22]}  b5 {[%clk 0:02:03]} 12. Nf3 {[%clk 0:02:17]}  b4 {[%clk 0:01:59]} 13. Ne2 {[%clk 0:02:12]}  d5 {[%clk 0:01:44]} 14. e5 {[%clk 0:01:59]}  Nd7 {[%clk 0:01:44]} 15. O-O {[%clk 0:01:58]}  f6 {[%clk 0:01:41]} 16. d4 {[%clk 0:01:54]}  cxd4 {[%clk 0:01:31]} 17. Nexd4 {[%clk 0:01:47]}  Nxd4 {[%clk 0:01:24]} 18. Qxd4 {[%clk 0:01:28]}  Ba6 {[%clk 0:01:23]} 19. Rfe1 {[%clk 0:01:20]}  Qc7 {[%clk 0:01:20]} 20. exf6+ {[%clk 0:01:14]}  Rxf6 {[%clk 0:01:12]} 21. Rxe6 {[%clk 0:01:08]}  Bb7 {[%clk 0:00:55]} 22. Re7+ {[%clk 0:01:01]}  Kh6 {[%clk 0:00:41]} 23. Rxd7 {[%clk 0:00:59]}  Qxd7 {[%clk 0:00:39]} 24. Qxf6 {[%clk 0:00:59]}  Rc8 {[%clk 0:00:35]} 25. Ne5 {[%clk 0:00:58]} 1-0


[Site "https://www.chess.com"]

[Event "Titled Tuesday Blitz June 6 Late 2023"]
[White "NtcPou"]
[Black "Roienko, Artur"]
[BlackFideId "14136732"]
[WhiteElo "2055"]
[BlackElo "2062"]
[Result "0-1"]
[Round "2"]
[TimeControl "180+2"]
[Date "2023.06.07"]
[WhiteClock "0:00:01"]
[BlackClock "0:00:11"]
[Board "179"]

1. e4 {[%clk 0:03:00]}  e6 {[%clk 0:02:59]} 2. d4 {[%clk 0:03:00]}  d5 {[%clk 0:03:00]} 3. Nd2 {[%clk 0:03:00]}  Nc6 {[%clk 0:02:59]} 4. Ngf3 {[%clk 0:02:58]}  Nf6 {[%clk 0:02:59]} 5. e5 {[%clk 0:02:57]}  Nd7 {[%clk 0:03:00]} 6. Bb5 {[%clk 0:02:57]}  Be7 {[%clk 0:02:56]} 7. O-O {[%clk 0:02:56]}  O-O {[%clk 0:02:56]} 8. Re1 {[%clk 0:02:50]}  a6 {[%clk 0:02:55]} 9. Ba4 {[%clk 0:02:50]}  Nb6 {[%clk 0:02:45]} 10. Bb3 {[%clk 0:02:47]}  Na5 {[%clk 0:02:39]} 11. Nf1 {[%clk 0:02:45]}  c5 {[%clk 0:02:38]} 12. c3 {[%clk 0:02:44]}  cxd4 {[%clk 0:02:35]} 13. cxd4 {[%clk 0:02:41]}  Nxb3 {[%clk 0:02:35]} 14. Qxb3 {[%clk 0:02:36]}  Bd7 {[%clk 0:02:31]} 15. Bd2 {[%clk 0:01:57]}  Ba4 {[%clk 0:02:28]} 16. Qd3 {[%clk 0:01:53]}  Nc4 {[%clk 0:02:24]} 17. b3 {[%clk 0:01:49]}  Nxd2 {[%clk 0:02:17]} 18. N1xd2 {[%clk 0:01:44]}  Bb5 {[%clk 0:02:17]} 19. Qe3 {[%clk 0:01:42]}  Rc8 {[%clk 0:02:15]} 20. Rac1 {[%clk 0:01:42]}  Ba3 {[%clk 0:02:15]} 21. Rxc8 {[%clk 0:01:40]}  Qxc8 {[%clk 0:02:16]} 22. Nb1 {[%clk 0:01:36]}  Be7 {[%clk 0:02:15]} 23. Rc1 {[%clk 0:01:31]}  Qd7 {[%clk 0:02:15]} 24. Qc3 {[%clk 0:01:26]}  Bc6 {[%clk 0:02:11]} 25. a3 {[%clk 0:01:18]}  Rc8 {[%clk 0:01:59]} 26. b4 {[%clk 0:01:17]}  b5 {[%clk 0:01:54]} 27. Nbd2 {[%clk 0:01:17]}  Bb7 {[%clk 0:01:52]} 28. Qb2 {[%clk 0:01:16]}  Rxc1+ {[%clk 0:01:47]} 29. Qxc1 {[%clk 0:01:16]}  Qc6 {[%clk 0:01:47]} 30. Qxc6 {[%clk 0:01:14]}  Bxc6 {[%clk 0:01:48]} 31. Nb3 {[%clk 0:01:13]}  Bd8 {[%clk 0:01:41]} 32. Ne1 {[%clk 0:01:11]}  f6 {[%clk 0:01:31]} 33. f4 {[%clk 0:01:10]}  fxe5 {[%clk 0:01:30]} 34. fxe5 {[%clk 0:01:10]}  Bb7 {[%clk 0:01:24]} 35. Nc5 {[%clk 0:01:05]}  Bc8 {[%clk 0:01:23]} 36. Ned3 {[%clk 0:01:04]}  Bg5 {[%clk 0:01:23]} 37. Kf2 {[%clk 0:01:03]}  Kf7 {[%clk 0:01:21]} 38. Kf3 {[%clk 0:00:53]}  Bd2 {[%clk 0:01:05]} 39. Ke2 {[%clk 0:00:49]}  Bc3 {[%clk 0:01:05]} 40. Ke3 {[%clk 0:00:48]}  a5 {[%clk 0:01:02]} 41. bxa5 {[%clk 0:00:34]}  Bxa5 {[%clk 0:01:01]} 42. Nc1 {[%clk 0:00:32]}  b4 {[%clk 0:01:00]} 43. axb4 {[%clk 0:00:31]}  Bxb4 {[%clk 0:01:00]} 44. N1b3 {[%clk 0:00:32]}  h6 {[%clk 0:00:54]} 45. g4 {[%clk 0:00:16]}  Ke7 {[%clk 0:00:53]} 46. Kf4 {[%clk 0:00:16]}  Bd7 {[%clk 0:00:46]} 47. g5 {[%clk 0:00:16]}  Bb5 {[%clk 0:00:41]} 48. gxh6 {[%clk 0:00:15]}  gxh6 {[%clk 0:00:41]} 49. Kg4 {[%clk 0:00:16]}  Be8 {[%clk 0:00:34]} 50. h3 {[%clk 0:00:13]}  Bc3 {[%clk 0:00:31]} 51. Kf3 {[%clk 0:00:12]}  Bh5+ {[%clk 0:00:26]} 52. Kf4 {[%clk 0:00:12]}  Be1 {[%clk 0:00:24]} 53. Nb7 {[%clk 0:00:10]}  Bh4 {[%clk 0:00:22]} 54. Nd6 {[%clk 0:00:10]}  Bf2 {[%clk 0:00:18]} 55. Nb5 {[%clk 0:00:09]}  Bd1 {[%clk 0:00:17]} 56. Nd2 {[%clk 0:00:08]}  Ba4 {[%clk 0:00:17]} 57. Nc3 {[%clk 0:00:07]}  Bc2 {[%clk 0:00:16]} 58. Nf3 {[%clk 0:00:07]}  Bf5 {[%clk 0:00:12]} 59. Nb5 {[%clk 0:00:07]}  Bxh3 {[%clk 0:00:11]} 60. Nd6 {[%clk 0:00:07]}  Bg2 {[%clk 0:00:10]} 61. Nb5 {[%clk 0:00:02]}  Bf1 {[%clk 0:00:10]} 62. Nd6 {[%clk 0:00:02]}  Be2 {[%clk 0:00:10]} 63. Kg4 {[%clk 0:00:02]}  Bxd4 {[%clk 0:00:10]} 64. Kf4 {[%clk 0:00:01]}  Bxf3 {[%clk 0:00:10]} 65. Kxf3 {[%clk 0:00:01]}  Bxe5 {[%clk 0:00:11]} 66. Nb5 {[%clk 0:00:01]}  Kf6 {[%clk 0:00:11]} 0-1


[Site "https://www.chess.com"]

[Event "Titled Tuesday Blitz June 6 Late 2023"]
[White "Dmitriev, Sergey"]
[Black "Jovic, Stanoje"]
[WhiteFideId "14101785"]
[BlackFideId "905020"]
[WhiteElo "2132"]
[BlackElo "2236"]
[Result "0-1"]
[Round "2"]
[TimeControl "180+2"]
[Date "2023.06.07"]
[WhiteClock "0:01:17"]
[BlackClock "0:01:27"]
[Board "181"]

1. d4 {[%clk 0:02:50]}  Nf6 {[%clk 0:02:59]} 2. Bf4 {[%clk 0:02:46]}  d5 {[%clk 0:02:58]} 3. Nf3 {[%clk 0:02:33]}  e6 {[%clk 0:02:58]} 4. e3 {[%clk 0:02:28]}  Bd6 {[%clk 0:02:58]} 5. Bg3 {[%clk 0:02:26]}  O-O {[%clk 0:02:58]} 6. Nbd2 {[%clk 0:02:24]}  b6 {[%clk 0:02:58]} 7. c3 {[%clk 0:02:22]}  c5 {[%clk 0:02:57]} 8. Bd3 {[%clk 0:02:18]}  Ba6 {[%clk 0:02:57]} 9. Bxa6 {[%clk 0:02:16]}  Nxa6 {[%clk 0:02:57]} 10. O-O {[%clk 0:02:16]}  Re8 {[%clk 0:02:55]} 11. h3 {[%clk 0:02:13]}  Nc7 {[%clk 0:02:45]} 12. Bxd6 {[%clk 0:02:10]}  Qxd6 {[%clk 0:02:44]} 13. Ne5 {[%clk 0:02:10]}  Nd7 {[%clk 0:02:41]} 14. Ndf3 {[%clk 0:02:09]}  f6 {[%clk 0:02:40]} 15. Nxd7 {[%clk 0:02:08]}  Qxd7 {[%clk 0:02:39]} 16. Re1 {[%clk 0:02:07]}  e5 {[%clk 0:02:38]} 17. e4 {[%clk 0:02:03]}  exd4 {[%clk 0:02:33]} 18. cxd4 {[%clk 0:02:00]}  dxe4 {[%clk 0:02:29]} 19. Nd2 {[%clk 0:01:59]}  Qxd4 {[%clk 0:02:26]} 20. Qb3+ {[%clk 0:01:58]}  Kf8 {[%clk 0:02:11]} 21. Rad1 {[%clk 0:01:55]}  Qd3 {[%clk 0:02:05]} 22. Qa4 {[%clk 0:01:49]}  e3 {[%clk 0:01:56]} 23. fxe3 {[%clk 0:01:31]}  Rxe3 {[%clk 0:01:54]} 24. Rxe3 {[%clk 0:01:28]}  Qxe3+ {[%clk 0:01:54]} 25. Kh1 {[%clk 0:01:26]}  Rd8 {[%clk 0:01:46]} 26. Nf3 {[%clk 0:01:24]}  Rxd1+ {[%clk 0:01:41]} 27. Qxd1 {[%clk 0:01:24]}  Qe7 {[%clk 0:01:35]} 28. Qa4 {[%clk 0:01:20]}  Nd5 {[%clk 0:01:28]} 29. Qe4 {[%clk 0:01:17]}  Qxe4 {[%clk 0:01:27]} 0-1


[Site "https://www.chess.com"]

[Event "Titled Tuesday Blitz June 6 Late 2023"]
[White "Garcia Cuenca, Victor"]
[Black "Castillo Pena, Patricia Evarista"]
[WhiteFideId "2250829"]
[BlackFideId "6412106"]
[WhiteElo "2329"]
[BlackElo "1859"]
[Result "1-0"]
[Round "2"]
[TimeControl "180+2"]
[Date "2023.06.07"]
[WhiteClock "0:00:28"]
[BlackClock "0:00:01"]
[Board "182"]

1. Nf3 {[%clk 0:03:00]}  Nf6 {[%clk 0:02:59]} 2. g3 {[%clk 0:03:01]}  d5 {[%clk 0:02:59]} 3. Bg2 {[%clk 0:03:02]}  c6 {[%clk 0:02:58]} 4. O-O {[%clk 0:02:57]}  e6 {[%clk 0:02:58]} 5. d3 {[%clk 0:02:57]}  Nbd7 {[%clk 0:02:57]} 6. Nbd2 {[%clk 0:02:58]}  Be7 {[%clk 0:02:56]} 7. e4 {[%clk 0:02:59]}  dxe4 {[%clk 0:02:53]} 8. dxe4 {[%clk 0:02:59]}  O-O {[%clk 0:02:47]} 9. a3 {[%clk 0:02:58]}  a5 {[%clk 0:02:45]} 10. e5 {[%clk 0:02:58]}  Nd5 {[%clk 0:02:44]} 11. c4 {[%clk 0:02:59]}  N5b6 {[%clk 0:02:37]} 12. Qe2 {[%clk 0:02:59]}  Qc7 {[%clk 0:02:31]} 13. Re1 {[%clk 0:02:58]}  Nc5 {[%clk 0:02:21]} 14. Ne4 {[%clk 0:02:56]}  Nb3 {[%clk 0:02:05]} 15. Rb1 {[%clk 0:02:45]}  Nxc1 {[%clk 0:02:05]} 16. Rbxc1 {[%clk 0:02:46]}  Nd7 {[%clk 0:02:03]} 17. Nc3 {[%clk 0:02:13]}  Rb8 {[%clk 0:01:54]} 18. h4 {[%clk 0:02:07]}  b6 {[%clk 0:01:29]} 19. h5 {[%clk 0:02:05]}  h6 {[%clk 0:01:29]} 20. Nh2 {[%clk 0:01:52]}  Bb7 {[%clk 0:01:13]} 21. Ng4 {[%clk 0:01:48]}  Rfd8 {[%clk 0:01:00]} 22. Red1 {[%clk 0:01:31]}  Nf8 {[%clk 0:00:39]} 23. Kh2 {[%clk 0:01:22]}  Rxd1 {[%clk 0:00:37]} 24. Rxd1 {[%clk 0:01:23]}  Rd8 {[%clk 0:00:37]} 25. Rd2 {[%clk 0:01:01]}  Rxd2 {[%clk 0:00:37]} 26. Qxd2 {[%clk 0:01:02]}  Qd8 {[%clk 0:00:34]} 27. Qxd8 {[%clk 0:00:39]}  Bxd8 {[%clk 0:00:35]} 28. f4 {[%clk 0:00:39]}  Nd7 {[%clk 0:00:30]} 29. b4 {[%clk 0:00:37]}  axb4 {[%clk 0:00:30]} 30. axb4 {[%clk 0:00:38]}  Be7 {[%clk 0:00:28]} 31. b5 {[%clk 0:00:38]}  Nc5 {[%clk 0:00:24]} 32. bxc6 {[%clk 0:00:35]}  Bc8 {[%clk 0:00:23]} 33. Nb5 {[%clk 0:00:35]}  Kf8 {[%clk 0:00:14]} 34. Nd6 {[%clk 0:00:34]}  Ba6 {[%clk 0:00:10]} 35. c7 {[%clk 0:00:29]}  Bxd6 {[%clk 0:00:05]} 36. exd6 {[%clk 0:00:30]}  Ke8 {[%clk 0:00:06]} 37. Ne5 {[%clk 0:00:29]}  Bb7 {[%clk 0:00:01]} 38. Bxb7 {[%clk 0:00:28]} 1-0


[Site "https://www.chess.com"]

[Event "Titled Tuesday Blitz June 6 Late 2023"]
[White "Klukin, Kirill"]
[Black "Nihal Sarin"]
[WhiteFideId "24199273"]
[BlackFideId "25092340"]
[WhiteElo "2344"]
[BlackElo "2689"]
[Result "0-1"]
[Round "3"]
[TimeControl "180+2"]
[Date "2023.06.07"]
[WhiteClock "0:00:08"]
[BlackClock "0:02:33"]
[Board "1"]

1. d4 {[%clk 0:03:00]}  Nf6 {[%clk 0:02:59]} 2. c4 {[%clk 0:03:00]}  e6 {[%clk 0:03:00]} 3. Nc3 {[%clk 0:03:00]}  Bb4 {[%clk 0:02:58]} 4. e3 {[%clk 0:03:00]}  O-O {[%clk 0:02:58]} 5. Bd2 {[%clk 0:03:00]}  c5 {[%clk 0:02:48]} 6. Nf3 {[%clk 0:02:59]}  cxd4 {[%clk 0:02:42]} 7. Nxd4 {[%clk 0:02:52]}  Nc6 {[%clk 0:02:40]} 8. a3 {[%clk 0:02:51]}  Bc5 {[%clk 0:02:36]} 9. Nc2 {[%clk 0:02:44]}  d5 {[%clk 0:02:31]} 10. b4 {[%clk 0:02:41]}  Bb6 {[%clk 0:02:31]} 11. cxd5 {[%clk 0:02:25]}  exd5 {[%clk 0:02:32]} 12. Be2 {[%clk 0:02:19]}  Bf5 {[%clk 0:02:31]} 13. O-O {[%clk 0:02:10]}  Rc8 {[%clk 0:02:32]} 14. Rc1 {[%clk 0:02:00]}  Bxc2 {[%clk 0:02:32]} 15. Rxc2 {[%clk 0:01:47]}  d4 {[%clk 0:02:33]} 16. exd4 {[%clk 0:01:41]}  Nxd4 {[%clk 0:02:34]} 17. Rc1 {[%clk 0:01:41]}  Re8 {[%clk 0:02:34]} 18. Bd3 {[%clk 0:01:23]}  Nb3 {[%clk 0:02:34]} 19. Qxb3 {[%clk 0:01:16]}  Qxd3 {[%clk 0:02:34]} 20. Qc2 {[%clk 0:01:08]}  Qxc2 {[%clk 0:02:31]} 21. Rxc2 {[%clk 0:01:08]}  Ne4 {[%clk 0:02:32]} 22. Be1 {[%clk 0:00:20]}  Bd4 {[%clk 0:02:31]} 23. Nb5 {[%clk 0:00:14]}  Rxc2 {[%clk 0:02:32]} 24. Nxd4 {[%clk 0:00:14]}  Ra2 {[%clk 0:02:33]} 25. f3 {[%clk 0:00:13]}  Nf6 {[%clk 0:02:33]} 26. Bh4 {[%clk 0:00:12]}  Nd5 {[%clk 0:02:33]} 27. h3 {[%clk 0:00:08]}  Ne3 {[%clk 0:02:33]} 0-1


[Site "https://www.chess.com"]